bitfinex/quotes_BTCUSD_20250408
["timestamp","ask_amount","ask_price","bid_price","bid_amount"]
[1744070401824,0.0476,79193.0,79182.0,0.1302055]
[1744070402222,0.0143366,79194.0,79182.0,0.1302055]
[1744070402631,0.0093366,79194.0,79182.0,0.1292055]
[1744070402833,0.0093366,79194.0,79182.0,0.1302055]
[1744070402834,0.0143366,79194.0,79182.0,0.1302055]
[1744070403049,0.0053366,79194.0,79182.0,0.1302055]
[1744070403244,0.00929692,79193.0,79182.0,0.1302055]
[1744070403468,0.00929692,79193.0,79182.0,0.1292055]
[1744070403806,0.00929692,79192.0,79182.0,0.1302055]
[1744070404221,0.00929692,79191.0,79182.0,0.1292055]
[1744070404393,0.00929692,79191.0,79182.0,0.1302055]
[1744070404591,0.00929692,79191.0,79182.0,0.002]
[1744070404757,0.00929692,79190.0,79182.0,0.001]
[1744070404960,0.00929692,79189.0,79182.0,0.001]
[1744070405365,0.004,79193.0,79154.0,0.0477]
[1744070405366,0.252668,79155.0,79154.0,0.0477]
[1744070405621,0.252668,79155.0,79154.0,0.1770887]
[1744070405923,0.00929692,79155.0,79154.0,0.4423937]
[1744070406479,0.01263,79172.0,79167.0,0.252629]
[1744070406655,0.01263,79174.0,79168.0,0.1420197]
[1744070406872,0.012632,79159.0,79156.0,0.4621]
[1744070407079,0.19270046,79161.0,79156.0,0.4621]
[1744070407281,0.00929692,79158.0,79155.0,0.252668]
[1744070407405,0.00929692,79157.0,79156.0,0.3946857]
[1744070407608,0.00929692,79157.0,79156.0,0.1293887]
[1744070408040,0.00929692,79157.0,79154.0,0.009]
[1744070408230,0.00929692,79156.0,79154.0,0.009]
[1744070408432,0.00929692,79156.0,79154.0,0.26167]
[1744070408658,0.4118,79177.0,79168.0,0.265258]
[1744070409015,0.00928899,79169.0,79159.0,0.265285]
[1744070409153,0.012631,79167.0,79159.0,0.265285]
[1744070409362,0.012632,79164.0,79158.0,0.252658]
[1744070409576,0.012632,79159.0,79156.0,0.009]
[1744070409786,0.252659,79158.0,79157.0,0.1293887]
[1744070409995,0.012633,79157.0,79156.0,0.009]
[1744070410193,0.012633,79157.0,79147.0,0.0466]
[1744070410194,0.012633,79153.0,79147.0,0.0466]
[1744070410355,0.01160841,79158.0,79152.0,0.012633]
[1744070410556,0.04745485,79158.0,79152.0,0.012633]
[1744070410757,0.265295,79157.0,79151.0,0.28468]
[1744070410980,0.0092848,79156.0,79151.0,0.28468]
[1744070411275,0.0092848,79155.0,79151.0,0.28468]
[1744070411534,0.0092848,79155.0,79151.0,0.297314]
[1744070411861,0.0092848,79154.0,79151.0,0.297314]
[1744070412071,0.01160484,79153.0,79151.0,0.297314]
[1744070412325,0.0092848,79152.0,79151.0,0.306314]
[1744070412873,0.01160484,79153.0,79152.0,0.012633]
[1744070413064,0.15056,79184.0,79177.0,0.012629]
[1744070413203,0.15056,79184.0,79179.0,0.26522]
[1744070413557,0.15056,79184.0,79174.0,0.01263]
[1744070413558,0.15056,79184.0,79178.0,0.012629]
[1744070413704,0.00928762,79183.0,79178.0,0.012629]
[1744070413921,0.012629,79181.0,79171.0,0.05923]
[1744070414125,0.02191562,79183.0,79175.0,0.01263]
[1744070414410,0.03250615,79182.0,79176.0,0.3946197]
[1744070414546,0.02321853,79181.0,79176.0,0.3946197]
[1744070414962,0.00928762,79180.0,79176.0,0.3946197]
[1744070415174,0.00919858,79180.0,79179.0,0.012629]
[1744070415382,0.00919858,79180.0,79179.0,0.1420177]
[1744070416620,0.01819858,79180.0,79179.0,0.1420177]
[1744070417111,0.009,79180.0,79179.0,0.1420177]
[1744070417322,0.018,79180.0,79179.0,0.1420177]
[1744070417739,0.01787654,79180.0,79179.0,0.1420177]
[1744070418584,0.01787654,79180.0,79179.0,0.1430177]
[1744070419869,0.0177249,79180.0,79179.0,0.1430177]
[1744070420236,0.0177249,79180.0,79179.0,0.001]
[1744070420459,0.0177249,79180.0,79179.0,0.14554353]
[1744070420671,0.04457067,79180.0,79179.0,0.1430177]
[1744070421362,0.0677892,79180.0,79179.0,0.1430177]
[1744070422200,0.06771171,79180.0,79179.0,0.1430177]
[1744070422552,0.06771171,79180.0,79179.0,0.60614341]
[1744070422553,9.4e-07,79180.0,79179.0,0.60614341]
[1744070422884,9.4e-07,79180.0,79179.0,0.6497177]
[1744070423051,0.0003366,79194.0,79193.0,0.012627]
[1744070423256,0.0003366,79194.0,79193.0,0.39708783]
[1744070423560,0.0003366,79194.0,79193.0,0.3945627]
[1744070423798,0.0003366,79194.0,79193.0,0.4407627]
[1744070424204,0.0003366,79194.0,79193.0,0.1293887]
[1744070424542,0.012629,79180.0,79179.0,0.004]
[1744070424694,0.012631,79167.0,79160.0,0.012632]
[1744070425019,0.012632,79161.0,79154.0,0.012633]
[1744070425251,0.012632,79161.0,79155.0,0.1293887]
[1744070425658,0.012632,79159.0,79155.0,0.1293887]
[1744070425874,0.252652,79160.0,79155.0,0.1293887]
[1744070426355,0.012632,79162.0,79156.0,0.252665]
[1744070426529,0.01144049,79159.0,79157.0,0.1293887]
[1744070426710,0.265291,79158.0,79157.0,0.1293887]
[1744070426909,0.265298,79156.0,79155.0,0.001]
[1744070427095,0.265311,79152.0,79151.0,0.002]
[1744070427903,0.27458304,79152.0,79151.0,0.002]
[1744070428105,0.00927204,79152.0,79151.0,0.002]
[1744070428308,0.00927204,79152.0,79151.0,0.3967037]
[1744070428841,0.012,79158.0,79157.0,0.265295]
[1744070429159,0.004,79158.0,79157.0,0.3946837]
[1744070429973,0.01263,79173.0,79167.0,0.26526]
[1744070430147,0.01263,79173.0,79168.0,0.012631]
[1744070430534,0.01263,79174.0,79168.0,0.012631]
[1744070430854,0.252614,79172.0,79169.0,0.1293887]
[1744070431055,0.265244,79172.0,79169.0,0.1293887]
[1744070431453,0.265251,79170.0,79169.0,0.1293887]
[1744070431719,0.252627,79168.0,79160.0,0.252649]
[1744070431885,0.012632,79163.0,79161.0,0.1293887]
[1744070432295,0.265278,79162.0,79161.0,0.1293887]
[1744070432493,0.252649,79161.0,79157.0,0.009]
[1744070432699,0.252649,79161.0,79158.0,0.1293887]
[1744070432901,0.265281,79161.0,79158.0,0.1293887]
[1744070433300,0.001,79163.0,79158.0,0.1293887]
[1744070433519,0.001,79163.0,79158.0,0.3820467]
[1744070433899,0.252646,79162.0,79158.0,0.1293887]
[1744070434136,0.265278,79162.0,79158.0,0.1293887]
[1744070434334,0.265278,79162.0,79158.0,0.1383887]
[1744070434536,0.252653,79160.0,79158.0,0.1383887]
[1744070434711,0.012632,79159.0,79158.0,0.1383887]
[1744070435260,0.252653,79160.0,79158.0,0.1383887]
[1744070435487,0.252646,79162.0,79158.0,0.3910467]
[1744070435616,0.001,79160.0,79158.0,0.4000467]
[1744070435846,0.001,79160.0,79158.0,0.1473887]
[1744070436027,0.253652,79160.0,79158.0,0.1473887]
[1744070436249,0.012632,79159.0,79151.0,0.002]
[1744070436466,0.012633,79153.0,79151.0,0.002]
[1744070437103,0.012633,79152.0,79151.0,0.002]
[1744070437327,0.252671,79155.0,79151.0,0.002]
[1744070437555,0.252671,79155.0,79152.0,0.009]
[1744070438006,0.265304,79155.0,79152.0,0.009]
[1744070438366,0.012633,79156.0,79152.0,0.009]
[1744070438507,0.02850302,79155.0,79152.0,0.009]
[1744070438703,0.01160947,79154.0,79152.0,0.009]
[1744070438901,0.01149054,79154.0,79152.0,0.009]
[1744070439208,0.01149054,79154.0,79152.0,0.1473887]
[1744070439427,0.001,79155.0,79152.0,0.1383887]
[1744070439636,0.252675,79153.0,79152.0,0.009]
[1744070439833,0.012633,79153.0,79152.0,0.018]
[1744070440030,0.012633,79154.0,79152.0,0.018]
[1744070440232,0.001,79155.0,79152.0,0.018]
[1744070440406,0.001,79155.0,79152.0,0.027]
[1744070440609,0.012633,79156.0,79151.0,0.002]
[1744070440851,0.001,79154.0,79152.0,0.009]
[1744070441054,0.00929563,79153.0,79152.0,0.018]
[1744070441251,0.00917883,79153.0,79152.0,0.018]
[1744070441452,0.00917883,79153.0,79152.0,0.021633]
[1744070441661,0.00913883,79153.0,79152.0,0.018]
[1744070442138,0.00913883,79153.0,79152.0,0.009]
[1744070442667,0.01013883,79153.0,79152.0,0.027]
[1744070442972,0.02277183,79153.0,79152.0,0.018]
[1744070443190,0.01013883,79153.0,79152.0,0.018]
[1744070443414,0.01113883,79153.0,79152.0,0.027]
[1744070443636,0.01013883,79153.0,79152.0,0.018]
[1744070443986,0.01105106,79153.0,79152.0,0.027]
[1744070444606,0.01105106,79153.0,79152.0,0.039633]
[1744070444823,0.002,79153.0,79152.0,0.039633]
[1744070445772,0.002,79153.0,79152.0,0.1690217]
[1744070446346,0.00189772,79153.0,79152.0,0.1690217]
[1744070448444,0.00180783,79153.0,79152.0,0.1690217]
[1744070449593,0.00180783,79153.0,79152.0,0.2163217]
[1744070449772,0.00180783,79153.0,79152.0,0.26544802]
[1744070449979,0.00180783,79153.0,79152.0,0.2629217]
[1744070450786,0.00168438,79153.0,79152.0,0.2629217]
[1744070453090,0.00155429,79153.0,79152.0,0.2629217]
[1744070453468,0.265244,79172.0,79164.0,0.265269]
[1744070453674,0.01263,79172.0,79167.0,0.012631]
[1744070453879,0.265238,79174.0,79167.0,0.1420197]
[1744070454074,0.03592446,79172.0,79167.0,0.1293887]
[1744070454275,0.01263,79171.0,79167.0,0.1293887]
[1744070454455,0.02329446,79172.0,79169.0,0.012631]
[1744070454657,0.03229446,79172.0,79169.0,0.012631]
[1744070454861,0.02329446,79171.0,79169.0,0.265252]
[1744070455164,0.02320183,79171.0,79169.0,0.265252]
[1744070455360,0.02320183,79171.0,79170.0,0.012631]
[1744070455672,0.014,79172.0,79171.0,0.252617]
[1744070455879,0.005,79172.0,79171.0,0.265247]
[1744070456107,0.04208841,79172.0,79171.0,0.265247]
[1744070456432,0.00932697,79172.0,79171.0,0.3946357]
[1744070456586,0.01232697,79172.0,79171.0,0.3946357]
[1744070456851,0.02032697,79172.0,79171.0,0.3956357]
[1744070457040,0.02032697,79172.0,79171.0,0.1303887]
[1744070457244,0.62544479,79172.0,79171.0,0.001]
[1744070457587,0.62544479,79172.0,79171.0,0.002]
[1744070457588,0.78104479,79172.0,79171.0,0.002]
[1744070457729,0.79694163,79172.0,79171.0,0.001]
[1744070457928,0.605311,79152.0,79151.0,0.002]
[1744070460421,0.60618681,79152.0,79151.0,0.011]
[1744070460816,0.60518681,79152.0,79151.0,0.011]
[1744070461308,0.60518681,79152.0,79147.0,0.0001682]
[1744070461309,0.605318,79150.0,79147.0,0.0001682]
[1744070461425,0.605331,79146.0,79130.0,0.000168]
[1744070461630,0.65355857,79146.0,79130.0,0.000168]
[1744070461824,0.605368,79135.0,79130.0,0.000168]
[1744070462431,0.61990885,79135.0,79130.0,0.000168]
[1744070462789,0.36717785,79131.0,79130.0,4e-07]
[1744070463105,0.49656655,79131.0,79130.0,4e-07]
[1744070463720,0.012637,79131.0,79130.0,4e-07]
[1744070464473,0.024637,79131.0,79130.0,0.0010004]
[1744070464909,0.02452651,79131.0,79130.0,0.0010004]
[1744070465267,0.024637,79131.0,79130.0,0.0010004]
[1744070466144,0.012,79131.0,79130.0,0.0010004]
[1744070466497,0.024637,79131.0,79130.0,0.0010004]
[1744070466899,0.03917785,79131.0,79130.0,0.0010004]
[1744070467113,0.03907135,79131.0,79130.0,0.0010004]
[1744070467655,0.05067615,79131.0,79130.0,0.0010004]
[1744070468505,0.1931753,79131.0,79130.0,0.0010004]
[1744070469119,0.0234983,79131.0,79130.0,0.0010004]
[1744070469318,0.02338709,79131.0,79130.0,0.0010004]
[1744070469526,0.03266625,79131.0,79130.0,0.0136374]
[1744070469935,0.02106145,79131.0,79130.0,0.0136374]
[1744070470133,0.02106145,79131.0,79130.0,0.1430261]
[1744070470337,0.01178229,79131.0,79130.0,0.14555336]
[1744070470570,0.03758229,79131.0,79130.0,0.58431185]
[1744070470786,2.9e-07,79131.0,79130.0,0.58178459]
[1744070471381,2.9e-07,79131.0,79130.0,0.58078459]
[1744070471551,0.01254635,79145.0,79139.0,0.012635]
[1744070471754,0.012636,79135.0,79130.0,0.44775889]
[1744070472007,0.012636,79135.0,79131.0,0.1293887]
[1744070472214,0.012637,79132.0,79130.0,0.40145889]
[1744070472411,0.606382,79131.0,79130.0,0.0140004]
[1744070472772,0.61466402,79131.0,79130.0,0.0090004]
[1744070473415,0.61466402,79131.0,79130.0,4e-07]
[1744070473824,0.36191902,79131.0,79130.0,4e-07]
[1744070473978,0.37080401,79131.0,79130.0,0.0010004]
[1744070474985,0.37280401,79131.0,79130.0,0.0020004]
[1744070475693,0.1718998,79131.0,79130.0,0.0010004]
[1744070475897,0.02391902,79131.0,79130.0,0.0020004]
[1744070476201,0.03191902,79131.0,79130.0,0.0020004]
[1744070476777,0.03491902,79131.0,79130.0,0.0030004]
[1744070480529,0.02228202,79131.0,79130.0,0.0156374]
[1744070480947,0.013,79131.0,79130.0,0.1450261]
[1744070481151,0.013,79131.0,79130.0,0.54001164]
[1744070481325,0.013,79131.0,79130.0,0.53748459]
[1744070481989,0.005,79131.0,79130.0,0.53648459]
[1744070482148,0.006,79131.0,79130.0,0.54548459]
[1744070482586,0.005,79131.0,79130.0,0.78923259]
[1744070483171,0.00927835,79146.0,79142.0,0.265342]
[1744070483524,0.00927835,79146.0,79143.0,0.012635]
[1744070484230,0.00927835,79146.0,79142.0,0.265342]
[1744070484433,0.003,79146.0,79142.0,0.266342]
[1744070485042,0.003,79146.0,79143.0,0.001]
[1744070485043,0.258697,79146.0,79143.0,0.001]
[1744070485301,0.34,79144.0,79143.0,0.001]
[1744070485673,0.34927835,79144.0,79143.0,0.001]
[1744070486474,0.34927835,79144.0,79143.0,0.002]
[1744070486712,0.36191335,79144.0,79143.0,0.001]
[1744070486934,0.36191335,79144.0,79130.0,0.78723259]
[1744070486935,0.352635,79140.0,79131.0,0.252745]
[1744070487163,0.34,79138.0,79132.0,0.012637]
[1744070487375,0.012636,79133.0,79130.0,4e-07]
[1744070487502,0.605382,79131.0,79130.0,4e-07]
[1744070487704,0.61466035,79131.0,79130.0,4e-07]
[1744070488474,0.62628195,79131.0,79130.0,0.0090004]
[1744070488890,0.62628195,79131.0,79130.0,0.0180004]
[1744070489087,0.62728195,79131.0,79130.0,0.0180004]
[1744070489832,0.62728195,79131.0,79130.0,0.0090004]
[1744070490072,0.6418228,79131.0,79130.0,0.0180004]
[1744070490300,0.77122825,79131.0,79130.0,0.0180004]
[1744070490515,0.62728195,79131.0,79130.0,0.0180004]
[1744070491039,0.62628195,79131.0,79130.0,4e-07]
[1744070491209,0.62628195,79131.0,79130.0,0.0090004]
[1744070491369,0.62728195,79131.0,79130.0,0.0180004]
[1744070493111,0.65053402,79131.0,79130.0,0.0180004]
[1744070495637,0.75036566,79131.0,79130.0,0.0180004]
[1744070496224,0.66507487,79131.0,79130.0,0.0180004]
[1744070497209,0.66507487,79131.0,79130.0,0.0080004]
[1744070498651,0.63789702,79131.0,79130.0,0.0080004]
[1744070498911,0.65053402,79131.0,79130.0,0.0080004]
[1744070499342,0.66507487,79131.0,79130.0,0.0080004]
[1744070499482,0.36717785,79130.0,79129.0,0.0001682]
[1744070499698,0.3764562,79130.0,79129.0,0.0001682]
[1744070499922,0.50586165,79130.0,79129.0,0.0001682]
[1744070500145,0.52909697,79130.0,79129.0,0.0001682]
[1744070500306,0.52909697,79130.0,79126.0,0.0001682]
[1744070500307,0.012637,79127.0,79126.0,0.0001682]
[1744070500506,0.7702245,79127.0,79126.0,0.0001682]
[1744070500765,0.79347657,79127.0,79126.0,0.0001682]
[1744070501347,0.824143,79127.0,79126.0,0.0001682]
[1744070501559,0.80247657,79127.0,79126.0,0.0011682]
[1744070501915,0.79347657,79127.0,79126.0,0.0001682]
[1744070502357,0.80247657,79127.0,79126.0,0.0011682]
[1744070502562,0.605402,79125.0,79124.0,0.0001679]
[1744070502767,0.88801535,79125.0,79124.0,0.0001679]
[1744070502961,0.7586099,79125.0,79124.0,0.0001679]
[1744070503194,0.78186197,79125.0,79124.0,0.0001679]
[1744070503392,0.65247327,79125.0,79124.0,0.0001679]
[1744070503589,0.67448805,79125.0,79124.0,0.0001679]
[1744070503788,0.83256805,79125.0,79124.0,0.0011679]
[1744070503987,0.8561089,79125.0,79124.0,0.0011679]
[1744070504410,0.7070289,79125.0,79124.0,0.0021679]
[1744070504615,0.8651089,79125.0,79124.0,0.0021679]
[1744070504809,0.8471089,79125.0,79124.0,0.0001679]
[1744070505373,0.9854976,79125.0,79124.0,0.0011679]
[1744070505797,0.8561089,79125.0,79124.0,0.0011679]
[1744070506002,0.84156805,79125.0,79124.0,0.0011679]
[1744070506843,0.41808605,79125.0,79124.0,0.0011679]
[1744070507209,0.67085005,79125.0,79124.0,0.0011679]
[1744070507417,0.41808605,79125.0,79124.0,0.0011679]
[1744070507644,0.06908605,79125.0,79124.0,0.0001679]
[1744070507904,0.04415202,79125.0,79124.0,0.1421946]
[1744070508042,0.05315202,79125.0,79124.0,0.1431946]
[1744070508263,0.05315202,79125.0,79124.0,0.2390946]
[1744070508476,0.0206216,79125.0,79124.0,0.2390946]
[1744070508883,0.018,79125.0,79124.0,0.2400946]
[1744070509528,0.009302,79137.0,79136.0,0.061136]
[1744070509746,0.349302,79138.0,79137.0,0.012636]
[1744070509953,0.349302,79138.0,79137.0,0.1420247]
[1744070510456,0.36092723,79138.0,79137.0,0.1420247]
[1744070510600,0.38530455,79138.0,79137.0,0.1420247]
[1744070510800,0.36192723,79138.0,79137.0,0.1510247]
[1744070511211,0.36192723,79138.0,79137.0,0.1420247]
[1744070511212,0.02092723,79138.0,79137.0,0.1420247]
[1744070511410,0.0003366,79163.0,79162.0,0.265278]
[1744070511805,0.02482366,79163.0,79162.0,0.265278]
[1744070512168,0.02482366,79163.0,79162.0,0.3946667]
[1744070512320,0.0003366,79163.0,79162.0,0.3946667]
[1744070512521,0.0003366,79163.0,79162.0,0.4420667]
[1744070513619,0.0003366,79163.0,79162.0,0.83452519]
[1744070513815,0.0013366,79163.0,79162.0,0.83552519]
[1744070514255,0.0003366,79163.0,79162.0,0.83452519]
[1744070514655,0.0003366,79163.0,79162.0,0.84352519]
[1744070515058,0.0003366,79163.0,79162.0,0.83452519]
[1744070515618,0.0003366,79163.0,79162.0,0.84352519]
[1744070516357,0.0003366,79163.0,79162.0,0.85252519]
[1744070521800,0.0003366,79163.0,79162.0,1.01052519]
[1744070522089,0.0003366,79163.0,79162.0,1.05792519]
[1744070522878,0.0003366,79194.0,79190.0,0.265184]
[1744070523093,0.0003366,79194.0,79191.0,0.1293887]
[1744070523727,0.012627,79192.0,79191.0,0.1293887]
[1744070523946,0.03755902,79192.0,79191.0,0.1293887]
[1744070524149,0.012627,79192.0,79191.0,0.1293887]
[1744070524395,0.0003366,79194.0,79191.0,0.1293887]
[1744070524571,0.0013366,79194.0,79191.0,0.1430157]
[1744070524992,0.0013366,79194.0,79193.0,0.012627]
[1744070525207,0.0013366,79194.0,79193.0,0.1420157]
[1744070525383,0.0013366,79194.0,79193.0,0.14454099]
[1744070525746,0.0013366,79194.0,79193.0,0.1420157]
[1744070526616,0.0003366,79194.0,79193.0,0.1420157]
[1744070526825,0.0003366,79194.0,79193.0,0.15354055]
[1744070527030,0.0003366,79194.0,79193.0,0.31150056]
[1744070527364,0.0003366,79194.0,79193.0,0.74883419]
[1744070527535,0.0003366,79194.0,79193.0,0.75783419]
[1744070527702,0.0003366,79194.0,79193.0,0.78137504]
[1744070527899,0.0003366,79194.0,79193.0,0.82637504]
[1744070528105,0.0003366,79194.0,79193.0,0.81737504]
[1744070528738,0.0003366,79194.0,79193.0,0.82637504]
[1744070529453,0.0003366,79194.0,79193.0,0.80837504]
[1744070529664,6e-07,79200.0,79199.0,0.012626]
[1744070529973,6e-07,79200.0,79199.0,0.20407985]
[1744070530117,6e-07,79200.0,79199.0,0.22155555]
[1744070530961,0.0003368,79211.0,79202.0,0.27968385]
[1744070531298,0.0003368,79211.0,79202.0,0.40907255]
[1744070531821,0.0003368,79211.0,79202.0,0.3945317]
[1744070532398,0.0129608,79211.0,79202.0,0.3945317]
[1744070532597,0.0003368,79211.0,79202.0,0.3945317]
[1744070532771,0.0129616,79203.0,79202.0,0.1293887]
[1744070532973,0.2654766,79203.0,79202.0,0.1293887]
[1744070533178,0.6054766,79203.0,79202.0,0.009]
[1744070533830,0.6054766,79203.0,79202.0,0.018]
[1744070534025,0.6054766,79203.0,79184.0,0.252574]
[1744070534026,0.352627,79195.0,79184.0,0.252574]
[1744070534234,0.252593,79179.0,79174.0,0.00929872]
[1744070534467,0.012629,79179.0,79174.0,0.1293887]
[1744070534586,0.012629,79182.0,79176.0,0.01263]
[1744070534792,0.012629,79182.0,79176.0,0.265231]
[1744070535494,0.34,79185.0,79182.0,0.252582]
[1744070535745,0.34,79185.0,79184.0,0.265204]
[1744070535948,0.252545,79194.0,79187.0,0.265191]
[1744070535949,0.012627,79194.0,79187.0,0.265191]
[1744070536252,0.012627,79194.0,79184.0,0.1293887]
[1744070536253,0.26183486,79193.0,79184.0,0.1293887]
[1744070536553,0.252563,79189.0,79185.0,0.1293887]
[1744070536756,0.012629,79177.0,79176.0,0.009]
[1744070536927,0.265206,79184.0,79176.0,0.1383887]
[1744070537250,0.002,79182.0,79177.0,0.3946157]
[1744070537749,0.265207,79183.0,79177.0,0.1420177]
[1744070538112,0.012628,79184.0,79178.0,0.265224]
[1744070538510,0.265191,79189.0,79185.0,0.009]
[1744070538718,0.012628,79186.0,79185.0,0.009]
[1744070538925,0.012627,79195.0,79177.0,0.1383887]
[1744070539147,0.012627,79195.0,79188.0,0.012628]
[1744070539505,0.25254,79196.0,79177.0,0.1383887]
[1744070539506,0.34,79179.0,79177.0,0.1383887]
[1744070539662,0.34,79182.0,79177.0,0.1383887]
[1744070539872,0.34,79182.0,79177.0,0.1510177]
[1744070540079,0.605212,79182.0,79177.0,0.1383887]
[1744070540283,0.34,79182.0,79178.0,0.012629]
[1744070540472,0.34,79182.0,79178.0,0.1420177]
[1744070540658,0.265211,79182.0,79178.0,0.1293887]
[1744070540859,0.34,79183.0,79179.0,0.012629]
[1744070541069,0.34,79183.0,79182.0,0.265211]
[1744070541853,0.252566,79187.0,79179.0,0.012629]
[1744070542073,0.34,79186.0,79179.0,0.012629]
[1744070542287,0.34,79186.0,79182.0,0.009]
[1744070542742,0.34,79186.0,79182.0,0.018]
[1744070542948,0.012628,79188.0,79182.0,0.009]
[1744070543303,0.01161789,79187.0,79182.0,0.009]
[1744070543506,0.01161789,79187.0,79184.0,0.252576]
[1744070543629,0.012628,79184.0,79167.0,0.252629]
[1744070543834,0.012628,79184.0,79142.0,0.05]
[1744070543835,0.01263,79171.0,79157.0,0.252661]
[1744070544088,0.252611,79173.0,79165.0,0.252636]
[1744070544289,0.265237,79175.0,79167.0,0.265258]
[1744070544497,0.252598,79177.0,79169.0,0.012631]
[1744070544711,0.252614,79172.0,79166.0,0.012631]
[1744070544995,0.01263,79171.0,79163.0,0.265272]
[1744070545228,0.252614,79172.0,79165.0,0.265266]
[1744070545452,0.01263,79173.0,79170.0,0.40145789]
[1744070545667,0.01263,79173.0,79170.0,0.009]
[1744070545886,0.01263,79171.0,79170.0,0.009]
[1744070546334,0.01263,79171.0,79170.0,0.018]
[1744070546803,0.34,79162.0,79154.0,0.252671]
[1744070547015,0.352632,79162.0,79154.0,0.265304]
[1744070547232,0.34,79162.0,79161.0,0.012632]
[1744070547519,0.34,79162.0,79161.0,0.3946697]
[1744070547947,0.35263,79172.0,79164.0,0.012632]
[1744070548096,0.34,79172.0,79166.0,0.265261]
[1744070548299,0.34,79172.0,79168.0,0.012631]
[1744070548502,0.34,79172.0,79170.0,0.009]
[1744070548744,0.35263,79172.0,79170.0,0.009]
[1744070548891,0.605247,79171.0,79170.0,0.009]
[1744070549445,0.34,79170.0,79168.0,0.1293887]
[1744070549621,0.0242385,79169.0,79168.0,0.1293887]
[1744070549949,0.352631,79165.0,79164.0,0.009]
[1744070550123,0.265268,79165.0,79164.0,0.1293887]
[1744070550323,0.25263,79167.0,79164.0,0.1293887]
[1744070550527,0.265278,79162.0,79161.0,0.009]
[1744070550729,0.265278,79162.0,79161.0,0.1293887]
[1744070551259,0.012633,79157.0,79150.0,0.252683]
[1744070551484,0.012632,79161.0,79154.0,0.252671]
[1744070551638,0.0116075,79156.0,79155.0,0.1420217]
[1744070552505,0.0116075,79159.0,79158.0,0.012632]
[1744070552725,0.0116075,79159.0,79158.0,0.1420207]
[1744070553465,0.0116075,79165.0,79159.0,0.265288]
[1744070553748,0.3642385,79165.0,79160.0,0.1293887]
[1744070553923,0.3642385,79165.0,79153.0,0.265307]
[1744070553924,0.012632,79160.0,79152.0,0.012633]
[1744070554123,0.34,79159.0,79156.0,0.012633]
[1744070554455,0.34,79159.0,79158.0,0.021632]
[1744070554586,0.34,79159.0,79158.0,0.009]
[1744070554987,0.0116075,79159.0,79158.0,0.1510207]
[1744070555491,0.0116075,79159.0,79158.0,0.20344692]
[1744070555692,0.0116075,79159.0,79158.0,0.2009207]
[1744070555891,5e-07,79159.0,79158.0,0.3572007]
[1744070556305,0.02318597,79187.0,79184.0,0.252575]
[1744070556504,0.02318597,79187.0,79186.0,0.012628]
[1744070556714,0.02318597,79187.0,79186.0,0.1420167]
[1744070556896,0.02318597,79187.0,79186.0,0.3945857]
[1744070557096,0.02318597,79192.0,79191.0,0.26518]
[1744070557353,0.02318597,79192.0,79191.0,0.1293887]
[1744070557587,0.252541,79195.0,79191.0,0.1293887]
[1744070557769,0.15628,79198.0,79191.0,0.1420157]
[1744070557973,0.34,79197.0,79191.0,0.3945677]
[1744070558379,0.42144,79198.0,79191.0,0.3945677]
[1744070558587,0.0003366,79203.0,79199.0,0.012626]
[1744070558785,0.34,79202.0,79199.0,0.1293887]
[1744070559091,0.2654776,79203.0,79199.0,0.1293887]
[1744070559092,0.34,79200.0,79199.0,0.1293887]
[1744070559224,0.34,79200.0,79189.0,0.252557]
[1744070559225,0.34,79189.0,79183.0,0.252578]
[1744070559434,0.012628,79188.0,79184.0,0.1293887]
[1744070559638,0.252568,79187.0,79184.0,0.1293887]
[1744070559839,0.012628,79183.0,79173.0,0.252608]
[1744070560124,0.265201,79185.0,79178.0,0.1420177]
[1744070560317,0.34,79184.0,79178.0,0.1420177]
[1744070560464,0.605214,79182.0,79178.0,0.1293887]
[1744070560664,0.34,79182.0,79179.0,0.265221]
[1744070560878,0.34,79182.0,79181.0,0.265214]
[1744070561478,0.34,79186.0,79182.0,0.012629]
[1744070561687,0.34,79186.0,79183.0,0.3819677]
[1744070561889,0.34,79186.0,79185.0,0.265201]
[1744070562090,0.34,79186.0,79185.0,0.3945897]
[1744070562296,0.155,79204.0,79202.0,0.012625]
[1744070562466,0.0003366,79203.0,79202.0,0.012625]
[1744070562683,0.0003366,79203.0,79202.0,0.1420137]
[1744070563508,0.0013366,79203.0,79202.0,0.1440137]
[1744070563918,0.0013366,79203.0,79202.0,0.1430137]
[1744070564295,0.0139616,79203.0,79202.0,0.1393887]
[1744070564609,0.0013366,79203.0,79202.0,0.1393887]
[1744070564829,0.0013366,79203.0,79202.0,0.1383887]
[1744070565030,0.3403366,79203.0,79202.0,0.1383887]
[1744070565374,0.3529616,79203.0,79202.0,0.018]
[1744070566376,0.3403366,79203.0,79202.0,0.018]
[1744070566524,0.0003366,79203.0,79202.0,0.1600137]
[1744070567965,0.0003366,79203.0,79202.0,0.16253862]
[1744070568324,0.0003366,79203.0,79202.0,0.16253863]
[1744070568514,0.0003366,79203.0,79202.0,0.1600137]
[1744070568940,0.0003366,79203.0,79202.0,0.1420137]
[1744070569382,0.0003366,79203.0,79202.0,0.1510137]
[1744070569572,0.0003366,79203.0,79202.0,0.1600137]
[1744070572064,0.0003366,79203.0,79202.0,0.1473887]
[1744070572471,0.0003366,79203.0,79202.0,0.1600137]
[1744070572792,0.0003366,79203.0,79202.0,0.1473887]
[1744070573410,0.0003366,79203.0,79202.0,0.1600137]
[1744070575695,0.02287269,79217.0,79211.0,0.265114]
[1744070576099,0.03549569,79217.0,79212.0,0.012624]
[1744070576937,0.02287269,79217.0,79212.0,0.265107]
[1744070577283,0.0003358,79217.0,79216.0,0.012623]
[1744070577483,0.0003358,79217.0,79216.0,0.1420117]
[1744070579145,0.0003358,79217.0,79216.0,0.1510117]
[1744070579583,0.0003358,79217.0,79216.0,0.1420117]
[1744070579721,0.0003358,79217.0,79216.0,0.1600117]
[1744070580243,0.0003358,79217.0,79216.0,0.1510117]
[1744070580440,0.0003358,79217.0,79216.0,0.1535362]
[1744070580789,8e-07,79217.0,79216.0,0.54599409]
[1744070580915,8e-07,79217.0,79216.0,0.55246959]